bitfinex-derivatives/quotes_ETHF0:USTF0_20240817
["timestamp","ask_amount","ask_price","bid_price","bid_amount"]
[1723936319271,0.45308934,2611.0,2610.9,2.90528]
[1723936319970,1.88911934,2611.0,2610.9,2.90528]
[1723936320273,0.45308934,2611.0,2610.9,2.90528]
[1723936320572,0.45308934,2611.0,2610.8,2.53911]
[1723936320573,7.72785658,2611.0,2610.8,2.53911]
[1723936320769,3.02430099,2610.9,2610.8,1.103]
[1723936320967,1.50573165,2611.1,2611.0,1.43603]
[1723936321172,0.08247958,2611.1,2611.0,8.18558633]
[1723936321471,0.08247958,2611.1,2611.0,16.40834566]
[1723936321773,1.50573165,2611.2,2611.1,1.43597]
[1723936321974,1.58820596,2611.2,2611.1,1.43597]
[1723936322274,1.58820325,2611.2,2611.1,10.29875566]
[1723936322471,1.58820325,2611.2,2611.1,9.29602933]
[1723936322671,1.58820325,2611.2,2611.1,10.29875566]
[1723936323770,1.58820325,2611.2,2611.1,12.21358419]
[1723936323771,0.0824716,2611.2,2611.1,12.21358419]
[1723936324080,1.50598122,2611.3,2611.2,1.43592]
[1723936324272,1.58844291,2611.3,2611.2,3.54148076]
[1723936325481,0.08271126,2611.3,2611.2,3.54148076]
[1723936326483,0.08271126,2611.3,2611.2,5.45623128]
[1723936327280,0.08271126,2611.3,2611.2,4.45367052]
[1723936327781,0.08271126,2611.3,2611.2,5.95977193]
[1723936327971,0.08271126,2611.3,2611.2,4.45367052]
[1723936327972,0.08270172,2611.3,2611.2,4.45367052]
[1723936328173,0.08270172,2611.3,2611.2,5.95977193]
[1723936329077,0.08270172,2611.3,2611.2,4.04502141]
[1723936329289,0.00024957,2611.3,2611.2,5.95971349]
[1723936329767,0.08270195,2611.3,2611.2,5.95971349]
[1723936330179,0.00024957,2611.3,2611.2,5.95971349]
[1723936330684,0.00024957,2611.3,2611.2,11.22523349]
[1723936330879,4.088,2611.6,2611.5,1.43575]
[1723936331076,4.17043722,2611.6,2611.5,2.43761259]
[1723936331382,4.17043722,2611.6,2611.5,10.59486759]
[1723936331589,0.08243722,2611.6,2611.5,11.31946759]
[1723936332080,0.08704746,2611.6,2611.5,11.31946759]
[1723936332593,0.08704746,2611.6,2611.5,10.317605]
[1723936334488,0.00461024,2611.6,2611.5,10.317605]
[1723936363501,0.00461024,2611.6,2611.5,11.31946759]
[1723936364397,0.0870391,2611.6,2611.5,11.31946759]
[1723936365195,0.0870391,2611.6,2611.5,13.23403148]
[1723936365595,0.4547391,2611.6,2611.5,13.23403148]
[1723936366095,0.4547391,2611.6,2611.5,13.23403951]
[1723936366297,0.37231024,2611.6,2611.5,13.23403951]
[1723936366496,0.45473976,2611.6,2611.5,13.23403951]
[1723936366895,0.08703976,2611.6,2611.5,13.73497081]
[1723936367398,0.08703976,2611.6,2611.5,12.23217692]
[1723936367599,0.08703976,2611.6,2611.5,13.73497081]
[1723936368107,0.08703976,2611.6,2611.5,17.56377081]
[1723936369195,0.08703976,2611.6,2611.5,13.73497081]
[1723936369397,0.08703976,2611.6,2611.5,17.56377081]
[1723936370298,0.00461024,2611.6,2611.5,17.56377081]
[1723936370503,0.08703787,2611.6,2611.5,17.56377081]
[1723936370699,0.08703787,2611.6,2611.5,15.64919889]
[1723936370903,0.08703787,2611.6,2611.5,17.56369925]
[1723936371104,0.00461024,2611.6,2611.5,16.06090536]
[1723936371302,0.08703787,2611.6,2611.5,17.56525723]
[1723936371509,0.08703787,2611.6,2611.5,16.06090536]
[1723936372491,1.59276952,2611.6,2611.5,16.06090536]
[1723936374499,1.59276949,2611.6,2611.5,16.06090536]
[1723936375511,1.59276949,2611.6,2611.5,16.0609087]
[1723936375710,1.59276949,2611.6,2611.5,18.06829016]
[1723936378402,1.59276949,2611.6,2611.5,14.23949016]
[1723936380015,1.59276949,2611.6,2611.5,14.23947362]
[1723936380599,0.58198599,2611.6,2611.5,22.76136534]
[1723936380909,0.49955839,2611.8,2611.7,2.87128]
[1723936381105,2.36323724,2612.0,2611.9,1.43553]
[1723936381306,2.36323724,2612.0,2611.9,5.95793927]
[1723936381708,2.36689166,2612.0,2611.9,5.95793927]
[1723936381915,2.36689166,2612.0,2611.9,6.32733927]
[1723936382310,0.35855442,2612.0,2611.9,6.32733927]
[1723936384002,0.35855442,2612.0,2611.9,4.82241716]
[1723936384206,0.35855442,2612.0,2611.9,3.91091839]
[1723936384512,3.80237166,2612.0,2611.9,2.53853]
[1723936385416,2.36689166,2612.0,2611.9,2.53853]
[1723936387318,3.80237166,2612.0,2611.9,2.53853]
[1723936387817,2.36689166,2612.0,2611.9,2.53853]
[1723936389914,3.80237166,2612.0,2611.9,2.53853]
[1723936391013,6.19569166,2612.0,2611.9,2.53853]
[1723936393018,7.63117166,2612.0,2611.9,2.53853]
[1723936394008,6.19569166,2612.0,2611.9,2.53853]
[1723936394321,2.36689166,2612.0,2611.9,2.53853]
[1723936394522,2.36689166,2612.0,2611.9,3.54151839]
[1723936394824,0.35855442,2612.0,2611.9,3.54151839]
[1723936395017,2.36689166,2612.0,2611.9,3.54151839]
[1723936395418,0.35855442,2612.0,2611.9,3.54151839]
[1723936396525,2.36689166,2612.0,2611.9,2.53853]
[1723936398216,0.35855442,2612.0,2611.9,3.54151839]
[1723936398415,2.36689166,2612.0,2611.9,2.53853]
[1723936398616,0.35855442,2612.0,2611.9,3.54151839]
[1723936398828,2.36689166,2612.0,2611.9,2.53853]
[1723936404929,2.36689166,2612.0,2611.9,3.54151839]
[1723936405130,2.36689166,2612.0,2611.9,2.53853]
[1723936406024,0.35855442,2612.0,2611.9,3.54151839]
[1723936406334,2.36689166,2612.0,2611.9,3.54151839]
[1723936407932,0.35855442,2612.0,2611.9,3.54151839]
[1723936408935,0.00365442,2612.0,2611.9,3.54151839]
[1723936411329,0.00365442,2612.0,2611.9,12.97308867]
[1723936411527,0.00365442,2612.0,2611.9,11.97010028]
[1723936411937,0.00365442,2612.0,2611.9,14.36337028]
[1723936412435,0.00365442,2612.0,2611.9,16.2775431]
[1723936413641,0.00365442,2612.0,2611.9,17.7130731]
[1723936413842,0.00365442,2612.0,2611.9,15.79890028]
[1723936415328,0.00365442,2612.0,2611.9,14.36337028]
[1723936416028,0.00365442,2612.0,2611.9,15.79890028]
[1723936416440,0.00365442,2612.0,2611.9,14.36337028]
[1723936417236,1.43913442,2612.0,2611.9,9.43157028]
[1723936417435,5.26793442,2612.0,2611.9,10.10155509]
[1723936417741,3.83245442,2612.0,2611.9,11.53708509]
[1723936418530,0.00365442,2612.0,2611.9,11.53708509]
[1723936418737,0.00365442,2612.0,2611.9,10.10155509]
[1723936419140,1.43913442,2612.0,2611.9,10.10155509]
[1723936419744,0.00365442,2612.0,2611.9,10.10155509]
[1723936420842,1.43913442,2612.0,2611.9,10.10155509]
[1723936421040,5.26793442,2612.0,2611.9,10.10155509]
[1723936421442,1.43913442,2612.0,2611.9,10.10155509]
[1723936422443,1.43913442,2612.0,2611.9,9.09904028]
[1723936422641,3.44747166,2612.0,2611.9,9.09904028]
[1723936422838,1.43913442,2612.0,2611.9,9.09904028]
[1723936423040,0.00365442,2612.0,2611.9,10.53457028]
[1723936424051,0.00365442,2612.0,2611.9,10.89987028]
[1723936424350,0.00365442,2612.0,2611.9,11.90238509]
[1723936425246,9.57873442,2612.0,2611.9,8.99855509]
[1723936425447,1.43559,2611.8,2611.7,0.00574955]
[1723936425838,8.11976905,2611.8,2611.7,0.00574955]
[1723936426443,5.60789,2611.8,2611.7,0.00574955]
[1723936426851,4.1723,2611.8,2611.7,1.10874955]
[1723936427152,7.61536559,2611.8,2611.7,1.10874955]
[1723936427451,7.61536266,2611.8,2611.7,1.10874955]
[1723936428547,6.17936978,2611.8,2611.7,1.10874955]
[1723936428747,2.35056978,2611.8,2611.7,1.10874955]
[1723936428949,6.17936978,2611.8,2611.7,1.10874955]
[1723936429150,7.61495978,2611.8,2611.7,1.10874955]
[1723936429355,6.17936978,2611.8,2611.7,1.10874955]
[1723936432349,2.35056978,2611.8,2611.7,2.54438955]
[1723936432549,0.3435,2611.8,2611.7,2.54438955]
[1723936433056,2.35056978,2611.8,2611.7,2.54438955]
[1723936433758,0.3435,2611.8,2611.7,2.54438955]
[1723936433952,2.00615669,2611.9,2611.7,1.10874955]
[1723936434152,2.00615669,2611.9,2611.8,1.103]
[1723936434355,1.43553,2611.9,2611.8,1.4508]
[1723936434551,3.44168669,2611.9,2611.8,1.4508]
[1723936434859,3.44168669,2611.9,2611.8,1.103]
[1723936435458,1.43553,2611.9,2611.8,1.103]
[1723936435651,3.44168669,2611.9,2611.8,1.103]
[1723936437160,3.82212111,2612.0,2611.8,2.53859]
[1723936437847,3.44168669,2611.9,2611.8,1.103]
[1723936438656,1.43553,2611.9,2611.8,1.103]
[1723936438855,3.44168669,2611.9,2611.8,1.103]
[1723936439555,1.43553,2611.9,2611.8,2.53859]
[1723936439767,3.82213111,2612.0,2611.8,2.53859]
[1723936440260,1.43553,2611.9,2611.8,1.103]
[1723936440445,2.38661111,2612.0,2611.8,2.53857]
[1723936441059,1.43553,2611.9,2611.8,2.53857]
[1723936441354,2.38661111,2612.0,2611.8,2.53857]
[1723936441654,2.38661111,2612.0,2611.9,1.43553]
[1723936441855,0.38045442,2612.0,2611.9,1.43553]
[1723936442063,0.38045442,2612.0,2611.9,2.16253]
[1723936442850,0.38045442,2612.0,2611.9,11.1268391]
[1723936442851,0.00365442,2612.0,2611.9,11.1268391]
[1723936443053,0.00365442,2612.0,2611.9,18.1634391]
[1723936443258,0.00365442,2612.0,2611.9,20.57887137]
[1723936443763,0.00365442,2612.0,2611.9,20.07739593]
[1723936444756,0.00365442,2612.0,2611.9,18.16322107]
[1723936445161,0.00365442,2612.0,2611.9,14.33442107]
[1723936445459,0.00365442,2612.0,2611.9,13.33212429]
[1723936445659,0.00365442,2612.0,2611.9,18.16322107]
[1723936446462,0.00365442,2612.0,2611.9,14.33442107]
[1723936450462,0.00365442,2612.0,2611.9,13.33212429]
[1723936450666,0.00365442,2612.0,2611.9,15.72539429]
[1723936450860,0.00365442,2612.0,2611.9,14.43512429]
[1723936451168,0.37055442,2612.0,2611.9,14.43512429]
[1723936456760,0.37055442,2612.0,2611.9,11.22732429]
[1723936460077,0.37055442,2612.0,2611.9,12.22962107]
[1723936460477,0.37055442,2612.0,2611.9,11.22732429]
[1723936462574,0.37055442,2612.0,2611.9,12.22962107]
[1723936464066,0.37055442,2612.0,2611.9,11.22732429]
[1723936472479,0.37055442,2612.0,2611.9,12.22962107]
[1723936473980,0.37055442,2612.0,2611.9,11.22732429]
[1723936474683,0.37055442,2612.0,2611.9,12.22962107]
[1723936475970,0.37055442,2612.0,2611.9,14.14383331]
[1723936476384,0.37055442,2612.0,2611.9,14.14387847]
[1723936476677,0.37055442,2612.0,2611.9,14.14385744]
[1723936476881,0.37055442,2612.0,2611.9,16.34936066]
[1723936477479,0.37055442,2612.0,2611.9,17.85313288]
[1723936477780,0.37055442,2612.0,2611.9,17.35171676]
[1723936477977,0.37055442,2612.0,2611.9,15.43748039]
[1723936478281,0.37055442,2612.0,2611.9,17.35175714]
[1723936479884,0.37055442,2612.0,2611.9,16.34940104]
[1723936481479,0.37055442,2612.0,2611.9,17.85317326]
[1723936482785,0.37055442,2612.0,2611.9,17.85317391]
[1723936483886,0.37055442,2612.0,2611.9,14.64537391]
[1723936484186,0.37055442,2612.0,2611.9,17.85317391]
[1723936484887,0.37055442,2612.0,2611.9,14.64537391]
[1723936485086,0.37055442,2612.0,2611.9,17.85317391]
[1723936485676,0.37055442,2612.0,2611.9,16.34940169]
[1723936485879,0.37055442,2612.0,2611.9,17.85455511]
[1723936487082,0.37055442,2612.0,2611.9,14.64675511]
[1723936487477,0.37055442,2612.0,2611.9,17.85455511]
[1723936487690,0.37055442,2612.0,2611.9,16.34940169]
[1723936488988,0.37055442,2612.0,2611.9,13.14160169]
[1723936489191,0.37055442,2612.0,2611.9,16.34940169]
[1723936490784,0.37055442,2612.0,2611.9,18.35599052]
[1723936491182,0.37055442,2612.0,2611.9,16.34940169]
[1723936491996,0.37055442,2612.0,2611.9,14.43512429]
[1723936492190,0.37055442,2612.0,2611.9,16.3493952]
[1723936493291,0.37055442,2612.0,2611.9,18.35598403]
[1723936493886,0.37055442,2612.0,2611.9,16.3493952]
[1723936494088,2.37671111,2612.0,2611.9,13.1415952]
[1723936494391,0.37055442,2612.0,2611.9,13.1415952]
[1723936495194,2.37671111,2612.0,2611.9,13.1415952]
[1723936495986,0.37055442,2612.0,2611.9,13.1415952]
[1723936496193,0.37055442,2612.0,2611.9,15.14818403]
[1723936496497,2.37671111,2612.0,2611.9,13.1415952]
[1723936496691,0.37055442,2612.0,2611.9,15.14823785]
[1723936497087,2.37671111,2612.0,2611.9,13.14164902]
[1723936497494,0.37055442,2612.0,2611.9,13.14164902]
[1723936498785,0.37055442,2612.0,2611.9,12.03864902]
[1723936498992,2.37671111,2612.0,2611.9,13.14164902]
[1723936499593,0.37055442,2612.0,2611.9,13.14164902]
[1723936499794,2.37671111,2612.0,2611.9,13.14164902]
[1723936500791,10.63483442,2612.0,2611.8,2.50975604]
[1723936500993,8.48575037,2611.9,2611.8,2.50975604]
[1723936501203,8.48575037,2611.9,2611.7,2.01233838]
[1723936501204,1.43559,2611.8,2611.7,1.00970085]
[1723936501501,2.51242049,2611.8,2611.7,1.00970085]
[1723936501699,5.97346,2611.9,2611.7,1.10874955]
[1723936501700,4.65708049,2611.9,2611.7,1.10874955]
[1723936501899,4.65708049,2611.9,2611.8,1.103]
[1723936502197,8.48588049,2611.9,2611.8,1.103]
[1723936503994,8.48588049,2611.9,2611.8,2.53859]
[1723936504195,5.97346,2611.9,2611.8,2.53859]
[1723936504395,4.5379,2611.9,2611.8,2.53859]
[1723936504814,0.00365442,2612.0,2611.9,1.43553]
[1723936505098,0.00365442,2612.0,2611.9,5.19835404]
[1723936505305,0.00365442,2612.0,2611.9,3.6925493]
[1723936506609,0.00365442,2612.0,2611.9,5.19578708]
[1723936506805,0.00365442,2612.0,2611.9,3.6925493]
[1723936507405,0.00365442,2612.0,2611.9,5.19562661]
[1723936507810,0.00365442,2612.0,2611.9,3.6925493]
[1723936508906,0.00365442,2612.0,2611.9,5.19560918]
[1723936509106,0.00365442,2612.0,2611.9,3.69243337]
[1723936509306,0.00365442,2612.0,2611.9,5.19543308]
[1723936511408,0.00365442,2612.0,2611.9,3.69243337]
[1723936512211,0.00365442,2612.0,2611.9,4.69399422]
[1723936512802,0.00365442,2612.0,2611.9,5.19543308]
[1723936513609,0.00365442,2612.0,2611.9,3.28122971]
[1723936513908,0.00365442,2612.0,2611.9,5.19549634]
[1723936515412,0.00365442,2612.0,2611.9,3.69249663]
[1723936518407,0.00365442,2612.0,2611.9,3.6925263]
[1723936520503,0.00365442,2612.0,2611.9,5.19552601]
[1723936522908,0.00365442,2612.0,2611.9,5.19548197]
[1723936525306,0.00365442,2612.0,2611.9,3.69248226]
[1723936525610,0.00365442,2612.0,2611.9,5.19548197]
[1723936527717,0.00365442,2612.0,2611.9,4.69355601]
[1723936528212,0.00365442,2612.0,2611.9,2.77930141]
[1723936528713,0.00365442,2612.0,2611.9,4.6936455]
[1723936529216,0.00365442,2612.0,2611.9,2.77930141]
[1723936530006,0.00365442,2612.0,2611.9,4.69365375]
[1723936531807,0.00365442,2612.0,2611.9,3.69258234]
[1723936532318,0.00365442,2612.0,2611.9,3.69253558]
[1723936532811,0.00365442,2612.0,2611.9,3.69253596]
[1723936534911,0.00365442,2612.0,2611.9,4.69503395]
[1723936535113,0.00365442,2612.0,2611.9,3.69253596]
[1723936535914,0.00365442,2612.0,2611.9,4.69504909]
[1723936536322,0.00365442,2612.0,2611.9,3.69253596]
[1723936537218,0.00365442,2612.0,2611.9,4.69497598]
[1723936537816,0.00365442,2612.0,2611.9,5.19553567]
[1723936538214,0.00365442,2612.0,2611.9,3.69253596]
[1723936538624,0.00365442,2612.0,2611.9,4.69496119]
[1723936539123,0.00365442,2612.0,2611.9,5.19553567]
[1723936539512,0.00365442,2612.0,2611.9,3.69253596]
[1723936539822,0.00365442,2612.0,2611.9,5.19553567]
[1723936541724,0.00365442,2612.0,2611.9,5.19549895]
[1723936542519,0.00365442,2612.0,2611.9,3.69249924]
[1723936542827,0.00365442,2612.0,2611.9,5.19549895]
[1723936543525,0.00365442,2612.0,2611.9,3.69249924]
[1723936543729,0.00365442,2612.0,2611.9,5.19549895]
[1723936545722,0.00365442,2612.0,2611.9,3.69249924]
[1723936546320,0.00365442,2612.0,2611.9,3.6925426]
[1723936546521,0.00365442,2612.0,2611.9,5.19554231]
[1723936546829,0.00365442,2612.0,2611.9,3.6925426]
[1723936547019,0.00365442,2612.0,2611.9,5.7979662]
[1723936547729,0.00365442,2612.0,2611.9,4.7955426]
[1723936548631,0.00365442,2612.0,2611.9,6.29854231]
[1723936550131,0.00365442,2612.0,2611.9,9.50634231]
[1723936550323,0.00365442,2612.0,2611.9,18.20463339]
[1723936550523,0.00365442,2612.0,2611.9,22.03295861]
[1723936550930,0.00365442,2612.0,2611.9,22.03289193]
[1723936551428,0.00365442,2612.0,2611.9,18.20451117]
[1723936551623,0.00365442,2612.0,2611.9,22.03292598]
[1723936553632,0.00365442,2612.0,2611.9,18.20451117]
[1723936554033,0.00365442,2612.0,2611.9,22.0329647]
[1723936558732,0.00365442,2612.0,2611.9,18.20451117]
[1723936558928,0.00365442,2612.0,2611.9,22.03292737]
[1723936560227,0.00365442,2612.0,2611.9,22.03291578]
[1723936562735,0.00365442,2612.0,2611.9,18.20451912]
[1723936563541,0.00365442,2612.0,2611.9,14.9967161]
[1723936563938,0.00365442,2612.0,2611.9,18.82508148]
[1723936564646,0.00365442,2612.0,2611.9,19.3248865]
[1723936566237,0.00365442,2612.0,2611.9,16.81849265]
[1723936567241,0.00365442,2612.0,2611.9,20.02629265]
[1723936567651,0.00365442,2612.0,2611.9,22.03068485]
[1723936567834,0.00365442,2612.0,2611.9,18.20231947]
[1723936568338,0.00365442,2612.0,2611.9,22.03084722]
[1723936568540,0.00365442,2612.0,2611.9,20.58507679]
[1723936568737,5.26793442,2612.0,2611.9,10.10889727]
[1723936568944,1.43553,2611.9,2611.8,2.10549805]
[1723936569241,5.95123,2611.9,2611.8,2.10549805]
[1723936569445,5.95123,2611.9,2611.8,1.103]
[1723936570249,7.95936396,2611.9,2611.8,1.103]
[1723936570449,1.43559,2611.8,2611.7,0.00574955]
[1723936570649,3.79220651,2611.8,2611.7,2.1112476]
[1723936570849,7.62100651,2611.8,2611.7,1.10874955]
[1723936571439,5.61289,2611.8,2611.7,1.10874955]
[1723936571749,4.1773,2611.8,2611.7,1.10874955]
[1723936572051,0.3485,2611.8,2611.7,3.5468876]
[1723936572265,0.6869,2611.9,2611.8,1.43559]
[1723936572548,1.0354,2611.9,2611.8,1.43559]
[1723936572742,4.8642,2611.9,2611.8,1.43559]
[1723936574351,1.0354,2611.9,2611.8,1.43559]
[1723936574863,1.0354,2611.9,2611.8,2.53859]
[1723936582958,1.0354,2611.9,2611.8,1.43559]
[1723936583252,1.0354,2611.9,2611.8,2.53859]
[1723936586964,2.47093,2611.9,2611.8,1.103]
[1723936587460,4.47904651,2611.9,2611.8,1.103]
[1723936589861,2.47093,2611.9,2611.8,1.103]
[1723936590064,4.47904651,2611.9,2611.8,1.103]
[1723936591665,8.30784651,2611.9,2611.8,1.103]
[1723936593474,6.29973,2611.9,2611.8,1.103]
[1723936593972,8.30784651,2611.9,2611.8,1.103]
[1723936594173,8.30784651,2611.9,2611.7,1.10874955]
[1723936594174,1.43559,2611.8,2611.7,1.10874955]
[1723936595280,8.70809651,2611.8,2611.7,0.00574955]
[1723936596465,6.69998,2611.8,2611.7,0.00574955]
[1723936602172,5.26439,2611.8,2611.7,0.00574955]
[1723936603081,5.26439,2611.8,2611.7,1.10874955]
[1723936611185,7.27250651,2611.8,2611.7,1.10874955]
[1723936611479,5.26439,2611.8,2611.7,1.10874955]
[1723936611778,7.27250651,2611.8,2611.7,1.10874955]
[1723936612168,7.27250651,2611.8,2611.7,0.00574955]
[1723936613171,5.26439,2611.8,2611.7,0.00574955]
[1723936614186,7.77681049,2611.8,2611.7,0.00574955]
[1723936614878,10.98461049,2611.8,2611.7,0.00574955]
[1723936616587,8.47219,2611.8,2611.7,0.00574955]
[1723936617973,5.26439,2611.8,2611.7,0.00574955]
[1723936618180,8.47219,2611.8,2611.7,0.00574955]
[1723936618673,10.98461049,2611.8,2611.7,0.00574955]
[1723936619280,2.8715,2611.5,2611.4,1.00249805]
[1723936619479,2.8715,2611.5,2611.2,1.00249805]
[1723936619480,1.43586,2611.3,2611.2,1.00249805]
[1723936619683,3.44429913,2611.3,2611.1,5.31329805]
[1723936619882,3.44429913,2611.3,2611.2,7.9197552]
[1723936620471,3.44429913,2611.3,2611.1,2.10549805]
[1723936620472,1.43592,2611.2,2611.1,2.10549805]
[1723936620682,2.53892,2611.2,2611.1,1.00249805]
[1723936620987,1.43597,2611.1,2611.0,1.0082476]
[1723936621186,3.80199409,2611.1,2611.0,0.00574955]
[1723936621481,1.79337,2611.1,2611.0,0.00574955]
[1723936622085,0.3574,2611.1,2611.0,0.00574955]
[1723936622284,0.3574,2611.1,2611.0,1.10874955]
[1723936623486,0.3574,2611.1,2611.0,2.54477955]
[1723936624384,0.3574,2611.1,2611.0,1.10874955]
[1723936624978,1.79337,2611.1,2611.0,1.10874955]
[1723936627085,0.3574,2611.1,2611.0,1.10874955]
[1723936629883,1.79337,2611.1,2611.0,0.00574955]
[1723936630084,8.83077,2611.1,2611.0,0.00574955]
[1723936630693,8.83077,2611.1,2610.8,1.0734]
[1723936630894,1.43619,2610.7,2610.6,0.00359981]
[1723936631199,2.53919,2610.7,2610.6,0.00359981]
[1723936631382,6.36959,2610.7,2610.6,0.00359981]
[1723936633495,5.26659,2610.7,2610.6,0.00359981]
[1723936634084,1.43618,2610.8,2610.6,1.10659981]
[1723936634286,1.43618,2610.8,2610.7,1.8258]
[1723936636697,1.78888,2610.8,2610.7,1.8258]
[1723936637694,5.61928,2610.8,2610.7,1.8258]
[1723936638396,1.43618,2610.8,2610.7,1.8258]
[1723936641002,1.43618,2610.8,2610.7,0.7228]
[1723936653308,3.24735,2611.0,2610.7,0.7228]
[1723936653309,0.7083,2611.0,2610.7,0.7228]
[1723936653508,0.3561,2611.0,2610.9,2.53908]
[1723936653910,4.1865,2611.0,2610.9,2.53908]
[1723936654308,0.3561,2611.0,2610.9,2.53908]
[1723936655907,4.4481,2611.2,2611.1,1.43597]
[1723936656111,3.21354955,2611.5,2611.4,1.43581]
[1723936656305,0.00574955,2611.5,2611.4,2.53881]
[1723936656613,0.00574955,2611.5,2611.4,6.36841]
[1723936656999,0.00574955,2611.5,2611.4,6.71271]
[1723936669120,0.00574955,2611.5,2611.4,11.35632]
[1723936669525,0.00574955,2611.5,2611.4,9.92051]
[1723936670315,0.00574955,2611.5,2611.4,6.09091]
[1723936670713,0.00574955,2611.5,2611.4,5.74661]
[1723936671505,0.36294955,2611.5,2611.4,5.74661]
[1723936673522,0.36294955,2611.5,2611.4,2.53881]
[1723936685518,0.36294955,2611.5,2611.4,2.88971]
[1723936685915,4.19254955,2611.5,2611.3,3.2078]
[1723936686221,1.79873955,2611.5,2611.3,4.64364]
[1723936687822,1.79873955,2611.5,2611.1,1.103]
[1723936687823,0.36294955,2611.5,2611.1,4.3108]
[1723936688028,1.43592,2611.2,2611.1,3.2078]
[1723936689029,0.3601,2611.2,2611.1,5.74677]
[1723936689323,0.7179,2611.2,2611.1,5.74677]
[1723936692325,1.44152955,2611.5,2611.3,1.43586]
[1723936692525,1.43581,2611.4,2611.2,1.79428]
[1723936693028,5.26541,2611.4,2611.2,1.79428]
[1723936693428,1.43581,2611.4,2611.2,1.79428]
[1723936693724,5.26541,2611.4,2611.2,1.79428]
[1723936694031,5.26541,2611.4,2611.2,0.3584]
[1723936694532,1.43581,2611.4,2611.3,1.43586]
[1723936694829,1.81153955,2611.5,2611.2,0.3584]
[1723936695019,1.43582,2611.4,2611.3,1.43583]
[1723936695416,5.26542,2611.4,2611.3,1.43583]
[1723936697719,1.43586,2611.3,2611.2,1.79429]
[1723936697920,1.43586,2611.3,2611.2,1.43589]
[1723936704032,3.44448409,2611.4,2611.2,1.43588]
[1723936704336,3.44448409,2611.4,2611.3,1.43586]
[1723936704727,7.27408409,2611.4,2611.3,1.43586]
[1723936706535,5.26546,2611.4,2611.3,1.43586]
[1723936708547,1.43592,2611.2,2611.1,5.74673]
[1723936709430,1.4359,2611.3,2611.2,1.43591]
[1723936710027,3.11162409,2611.4,2611.3,1.43586]
[1723936710028,3.44445409,2611.4,2611.3,1.43586]
[1723936710232,3.82014364,2611.5,2611.4,1.43581]
[1723936710434,1.81151955,2611.5,2611.4,1.43581]
[1723936710742,7.64974364,2611.5,2611.4,1.43581]
[1723936710943,3.82014364,2611.5,2611.4,1.43581]
[1723936711337,7.64974364,2611.5,2611.4,1.43581]
[1723936711536,3.82014364,2611.5,2611.4,1.43581]
[1723936711729,7.64974364,2611.5,2611.4,1.43581]
[1723936712038,3.82014364,2611.5,2611.4,1.43581]
[1723936712542,3.82014364,2611.5,2611.4,2.53881]
[1723936712543,0.37574955,2611.5,2611.4,2.53881]
[1723936712842,1.81149955,2611.5,2611.4,2.53881]
[1723936713925,3.82012364,2611.5,2611.4,2.53881]
[1723936714326,1.81149955,2611.5,2611.4,2.53881]
[1723936715643,3.82012364,2611.5,2611.4,2.53881]
[1723936718540,1.81149955,2611.5,2611.4,2.53881]
[1723936719744,7.31697364,2611.5,2611.1,4.21029805]
[1723936719943,2.53892,2611.2,2611.0,2.43848805]
[1723936720144,0.3638,2611.1,2611.0,2.43848805]
[1723936720453,1.43603,2611.0,2610.9,1.00249805]
[1723936720745,3.44465409,2611.0,2610.8,1.43612]
[1723936720948,3.78735409,2611.0,2610.9,8.14106497]
[1723936721433,7.61775409,2611.0,2610.9,8.14106497]
[1723936721837,3.78735409,2611.0,2610.9,8.14106497]
[1723936722044,1.77873,2611.0,2610.9,8.14106497]
[1723936722434,5.60913,2611.0,2610.9,8.14106497]
[1723936723239,1.77873,2611.0,2610.9,8.14106497]
[1723936723546,3.81952409,2611.1,2611.0,1.43603]
[1723936723547,2.37242409,2611.1,2611.0,1.43603]
[1723936723742,0.3638,2611.1,2611.0,1.79223]
[1723936723939,0.3638,2611.1,2611.0,2.13913]
[1723936724438,2.37242409,2611.1,2611.0,2.13913]
[1723936724634,0.3638,2611.1,2611.0,2.13913]
[1723936725444,2.00862409,2611.2,2611.1,1.43597]
[1723936725644,4.91212409,2611.3,2611.1,1.79347]
[1723936725852,8.74172409,2611.3,2611.1,1.79347]
[1723936726351,4.91212409,2611.3,2611.1,1.79347]
[1723936726551,1.43592,2611.2,2611.1,1.79347]
[1723936727044,5.26552,2611.2,2611.1,1.79347]
[1723936727253,3.8296,2611.2,2611.1,1.79347]
[1723936728255,4.91213409,2611.3,2611.1,1.79347]
[1723936728648,1.43619,2610.7,2610.6,0.00359981]
[1723936728952,1.43645,2610.3,2609.8,2.10549805]
[1723936729139,1.43661,2610.0,2609.8,2.10549805]
[1723936729339,1.43663,2609.9,2609.7,9.95552152]
[1723936729547,1.43663,2609.9,2609.7,8.95302347]
[1723936729548,1.43667,2609.9,2609.7,8.95302347]
[1723936729748,1.43667,2609.9,2609.7,0.7437]
[1723936730050,1.43667,2609.9,2609.7,0.74840955]
[1723936730051,1.43997395,2609.9,2609.7,0.74840955]
[1723936730550,0.00330395,2609.9,2609.7,2.18514955]
[1723936730753,0.00330395,2609.9,2609.7,1.85140955]
[1723936730952,0.00330395,2609.9,2609.7,3.28814955]
[1723936731350,0.00330395,2609.9,2609.7,1.85140955]
[1723936732055,0.00330395,2609.9,2609.7,3.28814955]
[1723936732257,0.00330395,2609.9,2609.7,1.85140955]
[1723936732746,1.43995395,2609.9,2609.7,1.85140955]
[1723936733547,0.00330395,2609.9,2609.7,1.85140955]
[1723936734555,0.00330395,2609.9,2609.8,10.75914355]
[1723936742750,0.00330395,2609.9,2609.8,14.59114355]
[1723936748466,0.00330395,2609.9,2609.8,9.65614355]
[1723936749878,1.10630395,2609.9,2609.8,9.65614355]
[1723936751064,1.10630395,2609.9,2609.8,8.21945355]
[1723936751374,2.54293395,2609.9,2609.8,8.21945355]
[1723936752275,0.00330395,2609.9,2609.8,9.65614355]
[1723936754577,0.00330395,2609.9,2609.8,10.75914355]
[1723936754766,0.00574955,2610.1,2610.0,2.87316]
[1723936754972,0.00574955,2610.1,2610.0,11.01516]
[1723936755169,0.00574955,2610.1,2610.0,24.2441635]
[1723936755668,0.00990539,2610.1,2610.0,24.2441635]
[1723936756079,0.00990539,2610.1,2610.0,19.2441635]
[1723936756379,0.00990539,2610.1,2610.0,14.5997835]
[1723936757171,0.00990539,2610.1,2610.0,13.4967835]
[1723936757369,0.00990539,2610.1,2610.0,13.8619835]
[1723936757879,0.00990539,2610.1,2610.0,10.0307835]
[1723936762877,0.00990539,2610.1,2610.0,13.8619835]
[1723936764376,0.00990539,2610.1,2610.0,16.4015635]
[1723936765078,0.00990539,2610.1,2610.0,19.6093635]
[1723936766978,0.00990539,2610.1,2610.0,16.4015635]
[1723936769081,0.00990539,2610.1,2610.0,13.57286155]